bitfinex/quotes_ETHUSD_20250623
["timestamp","ask_amount","ask_price","bid_price","bid_amount"]
[1750657991970,20.016,2250.6,2250.5,12.50589402]
[1750657992382,20.016,2250.6,2250.5,11.47909695]
[1750657992802,20.016,2250.6,2250.4,1.64027933]
[1750657992982,20.0769,2250.6,2250.4,1.64027933]
[1750657994713,20.016,2250.6,2250.4,1.64027933]
[1750657995089,9.329,2250.5,2250.4,1.64027933]
[1750657995817,9.3899,2250.5,2250.4,1.64027933]
[1750657996014,9.3462,2250.5,2250.1,3.16]
[1750657996214,0.0609,2250.4,2250.1,3.16]
[1750657996516,9.3462,2250.5,2250.1,3.16]
[1750657996718,0.0609,2250.4,2250.1,3.59485613]
[1750657996917,0.0609,2250.4,2250.2,1.35948561]
[1750657997314,9.3462,2250.5,2250.2,1.35948561]
[1750657997703,10.685,2250.6,2250.3,3.16]
[1750657998006,9.322,2250.5,2250.4,11.47909695]
[1750657998185,9.322,2250.5,2250.3,3.16]
[1750657998381,9.4001,2250.5,2250.4,0.52736856]
[1750657998715,9.4001,2250.5,2250.3,3.16]
[1750657998913,9.3392,2250.5,2250.3,3.16]
[1750657999119,0.0609,2250.4,2250.3,3.16]
[1750657999820,9.4001,2250.5,2250.3,3.16]
[1750657999983,9.4001,2250.5,2250.2,1.35948561]
[1750658000180,0.4759982,2250.4,2249.9,1.336461]
[1750658000381,0.0609,2250.2,2249.4,0.0624]
[1750658000605,7.306,2250.1,2249.5,11.47909695]
[1750658000816,9.322,2250.0,2249.6,0.0624]
[1750658000997,9.322,2250.0,2249.6,1.2165497]
[1750658001718,9.3829,2250.0,2249.6,1.2165497]
[1750658001880,0.0609,2249.9,2249.6,1.1541497]
[1750658002327,0.0609,2249.8,2249.4,0.45514822]
[1750658002512,0.0172,2249.7,2249.3,0.0594]
[1750658002819,0.0609,2249.4,2249.3,0.0594]
[1750658003051,13.17413465,2249.4,2249.3,0.0594]
[1750658003220,12.7589,2249.4,2249.3,0.0594]
[1750658003522,20.0639,2249.4,2249.3,0.0594]
[1750658003896,10.682,2249.4,2249.3,0.0594]
[1750658004131,10.682,2249.4,2249.3,11.53849695]
[1750658004288,9.321,2249.5,2249.3,12.69858665]
[1750658004619,9.321,2249.5,2249.4,0.0624]
[1750658004822,9.322,2249.6,2249.5,0.0624]
[1750658004984,7.306,2249.6,2249.5,0.0624]
[1750658006004,7.306,2249.6,2249.5,3.2224]
[1750658006212,7.306,2249.6,2249.5,4.89606387]
[1750658007150,7.306,2249.6,2249.5,15.44606387]
[1750658007304,10.7439,2250.2,2249.6,0.0624]
[1750658007501,2.017,2249.8,2249.7,3.16]
[1750658007706,2.017,2249.8,2249.7,5.84627608]
[1750658010901,10.683,2250.2,2249.7,5.84627608]
[1750658011106,9.323,2250.1,2249.8,0.7625]
[1750658011902,9.323,2250.1,2249.8,3.9225]
[1750658012447,9.323,2250.1,2249.9,0.0624]
[1750658014245,9.322,2250.0,2249.9,12.14621456]
[1750658014551,10.683,2250.2,2250.0,0.0624]
[1750658014716,17.988,2250.2,2250.1,0.0624]
[1750658014916,17.988,2250.2,2250.1,13.66137639]
[1750658015113,17.988,2250.2,2250.1,15.80315909]
[1750658015540,17.988,2250.2,2250.1,16.55885909]
[1750658017031,17.988,2250.2,2250.1,13.16]
[1750658017351,17.988,2250.2,2250.1,13.2224]
[1750658017649,20.003,2250.2,2250.1,13.2224]
[1750658018635,20.003,2250.2,2250.1,13.67621105]
[1750658019033,20.003,2250.2,2250.1,13.61381105]
[1750658020451,20.003,2250.2,2250.1,16.27737361]
[1750658021048,20.003,2250.2,2250.1,16.26647361]
[1750658021252,12.699,2250.2,2250.1,16.26647361]
[1750658021448,20.002,2250.2,2250.1,16.26647361]
[1750658023958,20.002,2250.2,2250.1,13.61381105]
[1750658024454,20.002,2250.2,2250.1,3.16]
[1750658024455,20.0599,2250.2,2250.1,3.16]
[1750658024964,20.002,2250.2,2250.1,3.16]
[1750658025847,20.002,2250.2,2250.1,3.66194792]
[1750658026561,10.683,2250.2,2250.1,3.66194792]
[1750658026764,2.011,2250.7,2250.4,0.55]
[1750658026936,0.0172,2251.0,2250.5,4.56192973]
[1750658026937,7.302,2250.6,2250.5,4.56192973]
[1750658027261,7.302,2250.6,2250.5,4.5175]
[1750658027863,2.011,2250.8,2250.5,4.5175]
[1750658028061,7.302,2250.7,2250.6,2.1496597]
[1750658028360,2.011,2250.8,2250.6,2.1496597]
[1750658028565,7.302,2250.7,2250.6,2.1496597]
[1750658029445,2.011,2250.8,2250.6,5.3096597]
[1750658029765,7.301,2250.7,2250.6,5.3096597]
[1750658029976,9.312,2250.8,2250.6,5.3096597]
[1750658030272,9.312,2250.8,2250.7,0.60600597]
[1750658030830,9.312,2250.8,2250.6,4.7596597]
[1750658031191,9.3699,2250.8,2250.6,3.16]
[1750658031465,9.312,2250.8,2250.3,10.0]
[1750658031865,0.0579,2250.7,2250.3,10.0]
[1750658032373,9.312,2250.8,2250.3,10.0]
[1750658032777,0.0579,2250.7,2250.3,10.0]
[1750658032951,0.0579,2250.7,2250.2,3.16]
[1750658033318,9.312,2250.8,2250.2,3.16]
[1750658033514,0.0579,2250.7,2250.2,3.16]
[1750658034169,9.312,2250.8,2250.2,3.16]
[1750658034563,0.0579,2250.7,2250.2,3.16]
[1750658034763,9.312,2250.8,2250.2,3.16]
[1750658035190,0.0579,2250.7,2250.2,3.16]
[1750658035491,9.312,2250.8,2250.2,3.16]
[1750658035690,9.312,2250.8,2250.3,3.16]
[1750658035995,0.0579,2250.7,2250.3,3.16]
[1750658036665,9.312,2250.8,2250.3,3.16]
[1750658036900,0.0579,2250.7,2250.3,3.16]
[1750658037081,9.312,2250.8,2250.3,3.16]
[1750658037677,0.0579,2250.7,2250.3,3.16]
[1750658038197,9.31,2250.6,2250.4,11.53619695]
[1750658039202,9.31,2250.6,2250.4,11.47909695]
[1750658041516,9.31,2250.6,2250.5,3.16]
[1750658047410,9.3679,2250.6,2250.4,3.16]
[1750658048447,9.3679,2250.6,2250.4,10.98938987]
[1750658048943,0.0751,2251.2,2250.5,7.82938987]
[1750658049143,0.0579,2251.0,2250.8,7.82938987]
[1750658049443,0.47409601,2250.9,2250.6,10.98938987]
[1750658049623,0.0579,2250.9,2250.6,10.98938987]
[1750658049940,0.41621158,2250.8,2250.6,10.98938987]
[1750658050146,0.0579,2250.9,2250.6,10.98938987]
[1750658050333,0.47411433,2250.8,2250.6,10.98938987]
[1750658050529,0.0579,2250.8,2250.6,10.98938987]
[1750658050835,0.0579,2250.9,2250.6,10.98938987]
[1750658051012,0.47411594,2250.8,2250.6,10.98938987]
[1750658051215,0.0579,2250.9,2250.6,10.98938987]
[1750658051413,9.307,2250.8,2250.7,7.82938987]
[1750658051743,9.72321044,2250.8,2250.7,7.82938987]
[1750658052245,9.7232175,2250.8,2250.7,7.82938987]
[1750658052645,9.72325466,2250.8,2250.7,7.82938987]
[1750658054149,9.72325466,2250.8,2250.6,7.82938987]
[1750658054317,9.3661,2250.8,2250.6,7.82938987]
[1750658055350,0.0172,2250.7,2250.5,3.16]
[1750658055547,9.307,2250.8,2250.6,7.82938987]
[1750658055856,9.3661,2250.8,2250.6,7.82938987]
[1750658056055,9.307,2250.8,2250.6,7.82938987]
[1750658056758,10.682,2251.3,2250.7,11.3134]
[1750658056975,5.55,2251.9,2251.4,0.7634]
[1750658056976,2.004,2251.9,2251.4,0.7634]
[1750658057248,2.004,2251.9,2251.8,7.82938987]
[1750658057954,2.004,2251.9,2251.8,8.59408987]
[1750658058125,0.0591,2252.3,2251.8,8.59408987]
[1750658058324,0.41630104,2252.2,2252.1,7.82938987]
[1750658058632,9.71430057,2252.2,2252.1,7.82938987]
[1750658059654,9.71430088,2252.2,2252.1,7.82938987]
[1750658059856,2.003,2252.2,2252.1,7.82938987]
[1750658060152,9.296,2252.2,2252.1,7.82938987]
[1750658060349,9.296,2252.2,2251.9,11.46578725]
[1750658060854,9.3551,2252.2,2251.6,22.28618725]
[1750658061155,9.3551,2252.2,2251.6,24.70333788]
[1750658061547,9.3551,2252.2,2251.6,25.14895157]
[1750658062336,0.0591,2252.1,2251.6,25.14895157]
[1750658062656,0.0591,2252.1,2251.6,24.32855157]
[1750658062859,0.0591,2251.9,2251.4,1.335413]
[1750658063018,0.0591,2251.9,2251.0,12.31888725]
[1750658063723,0.0172,2251.8,2251.0,1.24317008]
[1750658064056,0.0591,2251.4,2251.0,0.44677008]
[1750658064259,7.292,2251.3,2250.8,10.7964]
[1750658064423,7.292,2251.3,2250.9,1.72937769]
[1750658064424,2.003,2251.2,2250.9,1.72937769]
[1750658065332,2.003,2251.2,2250.8,10.8531]
[1750658065522,2.003,2251.2,2250.8,0.8531]
[1750658065927,2.003,2251.2,2250.8,10.8531]
[1750658066128,2.003,2251.2,2250.8,11.30292405]
[1750658066857,2.003,2251.2,2250.8,11.24622405]
[1750658067069,2.003,2251.2,2250.9,2.32790113]
[1750658067254,2.003,2251.2,2250.9,2.27120113]
[1750658067453,2.003,2251.2,2251.0,11.52248725]
[1750658067683,9.295,2251.2,2251.1,0.0567]
[1750658067884,9.295,2251.2,2251.0,11.46578725]
[1750658068541,9.295,2251.2,2251.1,10.0]
[1750658070665,0.0172,2252.0,2251.2,0.8584]
[1750658070850,2.003,2251.9,2251.8,10.0]
[1750658072172,9.294,2251.9,2251.8,10.0567]
[1750658072484,9.294,2251.9,2251.8,10.0]
[1750658075887,9.294,2251.9,2251.6,3.16]
[1750658075888,0.0763,2251.8,2251.6,3.16]
[1750658076086,0.0763,2251.8,2251.7,10.0]
[1750658076585,0.0763,2251.8,2251.6,3.16]
[1750658076784,0.0591,2251.7,2251.6,13.16]
[1750658077762,0.0763,2251.8,2251.6,13.16]
[1750658077965,0.0591,2251.7,2251.6,13.16]
[1750658078162,0.0172,2251.8,2251.6,13.16]
[1750658078367,0.0763,2251.8,2251.6,13.16]
[1750658079402,9.292,2251.7,2251.6,14.5327]
[1750658079592,0.0763,2252.1,2251.6,14.5327]
[1750658079593,2.003,2251.8,2251.7,10.8553]
[1750658079793,9.292,2251.8,2251.7,22.32108725]
[1750658079991,9.292,2251.8,2251.7,12.32108725]
[1750658080191,9.292,2251.8,2251.6,4.5327]
[1750658080390,9.292,2251.8,2251.7,12.05845725]
[1750658081570,9.292,2251.9,2251.7,12.05845725]
[1750658081770,9.292,2251.9,2251.8,0.0567]
[1750658083125,2.003,2251.9,2251.8,4.5231]
[1750658083268,2.003,2251.9,2251.8,6.35158913]
[1750658083469,10.68,2252.6,2251.8,6.35158913]
[1750658083470,9.292,2252.3,2252.0,0.0595]
[1750658083800,9.292,2252.3,2252.1,0.0595]
[1750658084603,2.003,2252.3,2252.0,11.46578725]
[1750658084785,2.003,2252.3,2252.2,0.0595]
[1750658084972,9.292,2252.3,2252.2,1.52802873]
[1750658085605,9.292,2252.3,2252.2,1.46852873]
[1750658087475,9.292,2252.3,2252.2,1.92174204]
[1750658087680,9.292,2252.3,2252.1,3.16]
[1750658089613,9.3483,2252.3,2252.1,3.16]
[1750658091613,9.292,2252.3,2252.1,3.16]
[1750658093578,4.98782021,2253.4,2252.0,11.91178901]
[1750658093579,0.0172,2253.5,2252.2,4.53]
[1750658093776,0.0563,2253.4,2253.1,11.46578725]
[1750658094319,7.286,2253.3,2253.1,11.46578725]
[1750658094476,7.286,2253.3,2253.0,0.82]
[1750658094817,7.3423,2253.3,2253.0,0.82]
[1750658094979,0.0563,2253.2,2252.8,12.25738725]
[1750658095179,0.0563,2253.2,2252.8,12.90653193]
[1750658095427,0.0563,2253.2,2252.8,14.30073293]
[1750658095718,9.284,2253.1,2252.8,14.30073293]
[1750658098258,9.283,2253.0,2252.8,14.30073293]
[1750658099259,9.3393,2253.0,2252.5,10.7814]
[1750658099419,9.3393,2253.0,2252.5,15.276338]
[1750658100054,9.283,2253.0,2252.5,15.276338]
[1750658100258,9.3393,2253.0,2252.5,15.276338]
[1750658100555,9.3393,2253.0,2252.6,2.67421253]
[1750658100754,0.0563,2252.9,2252.5,15.276338]
[1750658100935,9.283,2253.0,2252.5,15.276338]
[1750658101113,9.3393,2253.0,2252.5,15.276338]
[1750658102461,9.3393,2253.0,2252.6,0.0595]
[1750658103661,9.283,2253.0,2252.6,0.0595]
[1750658103955,1.998,2252.9,2252.7,11.52528725]
[1750658104163,1.998,2252.9,2252.8,0.0595]
[1750658105044,1.998,2252.9,2252.7,11.52528725]
[1750658105760,1.998,2252.9,2252.7,12.86007125]
[1750658106852,1.998,2252.9,2252.7,1.334784]
[1750658107148,2.0543,2252.9,2252.5,25.46668725]
[1750658107340,2.0543,2252.9,2252.6,2.54666873]
[1750658107730,1.998,2252.9,2252.6,2.54666873]
[1750658108142,2.0543,2252.9,2252.6,2.54666873]
[1750658110542,1.998,2252.9,2252.6,2.54666873]
[1750658110744,0.0172,2252.8,2252.3,10.453]
[1750658110945,0.0563,2252.7,2252.3,10.453]
[1750658111325,0.0172,2252.8,2252.3,3.613]
[1750658111653,0.0563,2252.7,2252.2,1.335028]
[1750658111820,0.0563,2252.7,2252.1,10.0]
[1750658112853,0.0563,2252.7,2252.2,0.0621]
[1750658113045,0.0563,2252.7,2252.3,11.46578725]
[1750658113244,0.0563,2252.7,2252.3,11.52788725]
[1750658113448,0.0563,2252.7,2252.3,13.68067597]
[1750658113646,0.0172,2252.8,2252.3,13.61857597]
[1750658113944,0.0582,2252.7,2252.3,13.61857597]
[1750658114656,0.0582,2252.7,2252.3,13.68067597]
[1750658116057,0.0582,2252.7,2252.3,2.15278872]
[1750658116229,0.0582,2252.7,2252.2,3.16]
[1750658117634,0.0172,2252.8,2252.2,3.16]
[1750658118250,0.0582,2252.7,2252.2,3.16]
[1750658119059,0.0582,2252.7,2252.2,3.2221]
[1750658121151,0.0172,2252.8,2252.2,3.16]
[1750658121358,0.0754,2252.8,2252.3,11.52788725]
[1750658121860,0.0582,2252.7,2252.3,11.52788725]
[1750658122258,0.0582,2252.7,2252.6,7.81485327]
[1750658123255,0.0172,2252.8,2252.6,7.81485327]
[1750658123467,9.274,2252.7,2252.6,8.5963386]
[1750658124163,0.0754,2253.0,2252.6,8.5963386]
[1750658124476,9.274,2252.7,2252.2,2.17950018]
[1750658124700,1.993,2252.7,2252.3,3.71]
[1750658124977,0.0172,2253.0,2252.6,0.8148]
[1750658125163,19.943,2253.1,2252.6,0.85918742]
[1750658125367,19.943,2253.1,2252.6,0.8148]
[1750658125861,19.943,2253.1,2253.0,7.81485327]
[1750658126042,20.0012,2253.1,2253.0,7.81485327]
[1750658126564,19.943,2253.1,2253.0,7.81485327]
[1750658127783,9.273,2253.1,2253.0,8.6646486]
[1750658127975,1.993,2253.2,2253.1,0.0621]
[1750658128137,9.273,2253.2,2253.1,7.87695327]
[1750658128552,1.993,2253.2,2253.1,7.87695327]
[1750658128865,9.273,2253.2,2253.1,7.87695327]
[1750658130260,9.273,2253.2,2253.1,8.82431813]
[1750658130963,9.273,2253.2,2253.1,7.81485327]
[1750658131648,9.273,2253.2,2253.1,7.87695327]
[1750658132160,9.273,2253.2,2253.1,7.81485327]
[1750658132594,0.0172,2253.1,2252.7,0.7842]
[1750658132880,0.0754,2253.1,2252.8,7.81485327]
[1750658134060,0.0582,2253.0,2252.8,7.81485327]
[1750658134353,0.0582,2253.0,2252.5,0.7549]
[1750658134354,0.0582,2253.0,2252.5,7.81485327]
[1750658134620,0.0754,2253.1,2252.7,7.81485327]
[1750658134752,0.0582,2253.0,2252.7,7.81485327]
[1750658135285,0.0172,2253.1,2252.9,7.81485327]
[1750658135588,9.271,2253.0,2252.9,7.81485327]
[1750658137374,9.271,2253.0,2252.9,7.87695327]
[1750658137985,7.278,2253.0,2252.9,8.6825686]
[1750658138283,9.271,2253.1,2253.0,0.0621]
[1750658139575,1.993,2253.1,2253.0,0.0621]
[1750658139883,1.993,2253.1,2253.0,0.8569]
[1750658142295,1.993,2253.1,2253.0,1.4069]
[1750658142470,1.993,2253.1,2253.0,2.86530686]
[1750658146609,1.993,2253.1,2252.6,0.7942]
[1750658146810,0.0172,2253.0,2252.4,7.81485327]
[1750658146973,0.0611,2252.9,2252.4,7.81485327]
[1750658147303,0.0172,2253.0,2252.4,7.81485327]
[1750658147497,0.0611,2252.9,2252.4,7.81485327]
[1750658148006,0.0172,2253.0,2252.4,7.81485327]
[1750658148407,0.0611,2252.9,2252.3,10.0]
[1750658148702,0.0611,2252.9,2252.3,12.68135889]
[1750658150418,0.0611,2252.9,2252.4,0.062]
[1750658151698,0.0611,2252.9,2252.3,12.68135889]
[1750658151699,9.264,2252.9,2252.6,0.062]
[1750658151880,9.264,2252.9,2252.5,12.01242095]
[1750658152080,1.988,2253.0,2252.8,0.062]
[1750658152290,1.988,2253.0,2252.7,0.062]
[1750658152488,1.988,2253.0,2252.6,0.7806]
[1750658152784,1.988,2253.0,2252.8,11.46242095]
[1750658156891,1.988,2253.0,2252.8,14.62242095]
[1750658157516,1.988,2253.0,2252.9,0.062]
[1750658158390,2.0052,2253.4,2253.0,0.831]
[1750658158594,7.275,2253.3,2252.9,0.55]
[1750658158803,7.275,2253.3,2252.9,2.3270723]
[1750658159008,7.275,2253.3,2253.0,0.062]
[1750658160328,9.262,2253.4,2253.2,0.062]
[1750658160763,1.988,2253.4,2253.2,0.062]
[1750658161452,1.988,2253.4,2253.2,0.8557]
[1750658161653,1.988,2253.4,2253.3,1.2938121]
[1750658162535,10.0172,2253.8,2253.3,1.2318121]
[1750658162741,7.274,2253.5,2253.3,1.2318121]
[1750658163564,1.988,2253.6,2253.3,1.2318121]
[1750658163868,7.273,2253.5,2253.3,1.2318121]
[1750658167759,7.273,2253.5,2253.3,1.2938121]
[1750658168394,7.273,2253.5,2253.3,9.10257536]
[1750658168589,7.272,2253.5,2253.4,0.38652073]
[1750658168756,7.272,2253.5,2253.3,9.04057536]
[1750658168946,7.272,2253.5,2253.3,1.2318121]
[1750658169979,7.272,2253.5,2253.2,1.29887216]
[1750658170285,7.3331,2253.5,2253.4,1.334434]
[1750658170744,7.272,2253.5,2253.2,0.44317216]
[1750658171079,0.0611,2253.3,2253.0,3.9919]
[1750658171278,0.0611,2253.3,2253.0,2.19587356]
[1750658171571,0.0611,2253.3,2253.0,3.53054456]
[1750658171776,0.0611,2253.3,2253.0,3.59254456]
[1750658172486,0.0611,2253.3,2253.0,2.76064456]
[1750658172657,0.0611,2253.3,2253.0,2.69864456]
[1750658172853,0.0611,2253.3,2253.0,1.334671]
[1750658173460,0.057,2253.3,2252.6,0.773]
[1750658173661,7.272,2253.5,2252.4,0.7681]
[1750658173662,0.057,2253.1,2252.4,0.7681]
[1750658173878,0.057,2252.9,2252.6,1.334873]
[1750658174390,9.316,2253.0,2252.6,2.32604663]
[1750658174956,0.057,2252.9,2252.6,2.32604663]
[1750658175275,9.259,2253.0,2252.6,1.334873]
[1750658175479,0.057,2252.9,2252.5,7.80876326]
[1750658175678,0.057,2252.9,2252.5,9.14373126]
[1750658176194,0.057,2252.8,2252.5,1.334968]
[1750658177198,0.0172,2252.9,2252.5,1.334968]
[1750658177503,0.057,2252.8,2252.5,1.334968]
[1750658177796,0.0172,2252.7,2252.1,3.16]
[1750658178002,7.80876326,2252.5,2252.3,1.335105]
[1750658178200,27.14196326,2252.4,2252.3,1.335105]
[1750658178500,0.057,2252.3,2251.5,7.86706326]
[1750658178795,0.057,2252.3,2251.7,1.335105]
[1750658180201,0.0172,2252.2,2251.7,1.335105]
[1750658180395,0.057,2252.1,2251.7,1.335105]
[1750658181071,0.057,2252.1,2251.4,10.0583]
[1750658181272,9.253,2252.0,2251.6,0.0583]
[1750658181714,0.0742,2251.8,2251.5,1.78712945]
[1750658182824,0.0172,2251.8,2251.5,1.78712945]
[1750658183410,9.253,2251.7,2251.5,1.78712945]
[1750658183591,0.0172,2251.8,2251.5,1.78712945]
[1750658183779,0.0172,2252.1,2251.6,7.8531738]
[1750658184105,9.254,2252.0,2251.6,7.80876326]
[1750658184611,9.254,2252.0,2251.6,7.85317084]
[1750658185310,9.254,2252.0,2251.7,0.7687]
[1750658185692,0.0742,2252.3,2251.8,7.80876326]
[1750658185894,9.255,2252.2,2251.8,7.80876326]
[1750658186091,1.983,2252.1,2251.8,7.80876326]
[1750658186316,7.272,2252.0,2251.8,7.80876326]
[1750658186683,7.272,2252.0,2251.7,2.00777117]
[1750658187305,7.272,2252.0,2251.8,0.98165344]
[1750658187621,7.272,2252.0,2251.8,1.03995344]
[1750658188990,7.272,2252.0,2251.9,1.335313]
[1750658189729,0.0742,2252.3,2251.9,1.335313]
[1750658189895,9.255,2252.0,2251.9,1.335313]
[1750658191067,0.0172,2252.3,2251.9,1.393613]
[1750658191325,9.255,2252.2,2252.0,7.80876326]
[1750658191526,9.255,2252.2,2252.1,0.0583]
[1750658192229,9.255,2252.2,2251.9,1.393613]
[1750658192445,9.255,2252.2,2251.9,2.39072063]
[1750658192925,0.057,2252.4,2251.9,2.39072063]
[1750658193245,9.255,2252.1,2251.9,1.393613]
[1750658194042,9.255,2252.1,2251.9,1.335313]
[1750658194245,9.312,2252.1,2251.9,1.335313]
[1750658194429,0.057,2252.0,2251.6,3.16]
[1750658194626,0.057,2252.0,2251.8,1.335378]
[1750658195440,10.668,2252.6,2251.9,10.0583]
[1750658195645,0.0172,2252.5,2252.0,7.86706326]
[1750658195838,9.254,2252.4,2252.1,0.0583]
[1750658196541,7.271,2252.3,2252.1,0.0583]
[1750658196742,10.668,2252.6,2252.1,0.0583]
[1750658196743,10.668,2252.6,2252.2,8.55926326]
[1750658196934,9.254,2252.5,2252.3,0.0583]
[1750658197248,10.668,2252.6,2252.5,0.0583]
[1750658197464,17.939,2252.6,2252.5,0.0583]
[1750658199330,19.922,2252.6,2252.5,0.0583]
[1750658199566,19.922,2252.6,2252.5,0.84500633]
[1750658200060,12.651,2252.6,2252.5,0.84500633]
[1750658200274,19.921,2252.6,2252.5,0.84500633]
[1750658201456,0.0172,2253.1,2252.5,1.39500633]
[1750658201654,1.983,2252.7,2252.6,0.7831]
[1750658201969,9.253,2252.7,2252.6,1.78039612]
[1750658202566,9.253,2252.7,2252.6,1.83869612]
[1750658202779,9.253,2252.7,2252.6,1.78039612]
[1750658202963,9.253,2252.7,2252.3,8.65396326]
[1750658203168,9.3135,2252.7,2252.4,0.55]
[1750658204130,9.3307,2252.7,2252.4,0.55]
[1750658204775,0.0605,2252.6,2252.1,8.57646326]
[1750658204934,0.0605,2252.6,2252.2,0.85764633]
[1750658205445,0.0605,2252.6,2252.2,0.91974633]
[1750658206366,0.0605,2252.6,2252.2,0.85764633]
[1750658206736,0.0605,2252.6,2252.3,0.3636861]
[1750658207776,9.2702,2252.7,2252.3,0.3636861]
[1750658208384,0.0605,2252.6,2252.3,0.3636861]
[1750658208542,9.251,2252.5,2252.3,0.3636861]
[1750658210563,0.0172,2252.7,2252.3,0.3636861]
[1750658210974,9.246,2252.6,2252.4,0.55]
[1750658211170,9.246,2252.5,2252.4,0.55]
[1750658212558,9.246,2252.5,2252.4,0.6121]
[1750658213768,0.0605,2252.9,2252.4,0.6121]
[1750658213968,9.246,2252.5,2252.4,0.6121]
[1750658214179,9.246,2252.5,2252.4,1.79800899]
[1750658216383,9.246,2252.5,2252.4,0.6121]
[1750658217460,0.0605,2252.8,2252.4,0.6121]
[1750658217777,9.245,2252.7,2252.4,1.946997]
[1750658217977,9.3055,2252.7,2252.4,1.334897]
[1750658218170,9.3055,2252.7,2252.3,1.1479861]
[1750658218354,0.0172,2252.6,2252.3,0.3636861]
[1750658218896,0.0605,2252.5,2252.3,0.3636861]
[1750658219798,0.0172,2252.6,2252.3,0.3636861]
[1750658220001,0.0605,2252.5,2252.3,0.3636861]
[1750658220167,9.245,2252.7,2252.3,0.3636861]
[1750658220168,8.30223517,2252.4,2252.3,0.3636861]
[1750658221793,8.30232338,2252.4,2252.3,0.3636861]
[1750658222578,8.30192419,2252.4,2252.3,0.3636861]
[1750658223007,7.88646326,2252.4,2252.3,0.3636861]
[1750658223310,8.30192584,2252.4,2252.3,0.3636861]
[1750658223511,8.3019188,2252.4,2252.3,0.3636861]
[1750658223894,8.30205603,2252.4,2252.3,0.3636861]
[1750658224690,17.54605603,2252.4,2252.3,0.3636861]
[1750658224877,9.73729277,2252.4,2252.3,0.3636861]
[1750658225080,9.67679277,2252.4,2252.3,0.3636861]
[1750658225321,9.73729277,2252.4,2252.3,0.3636861]
[1750658225483,9.73728117,2252.4,2252.3,0.3636861]
[1750658225806,0.49328707,2252.4,2252.3,0.3636861]
[1750658226110,0.0777,2252.4,2252.3,0.3636861]
[1750658226313,0.43278885,2252.4,2252.3,0.3636861]
[1750658226517,9.67678885,2252.4,2252.3,0.3636861]
[1750658227194,9.73728885,2252.4,2252.3,0.3636861]
[1750658227605,9.73700749,2252.4,2252.3,0.3636861]
[1750658228649,0.49300749,2252.4,2252.3,0.3636861]
[1750658228928,9.73701011,2252.4,2252.3,0.3636861]
[1750658229696,9.73701083,2252.4,2252.3,0.3636861]
[1750658230824,9.73692204,2252.4,2252.3,0.3636861]
[1750658231026,9.73692216,2252.4,2252.3,0.3636861]
[1750658231227,9.73692188,2252.4,2252.3,0.3636861]
[1750658231726,9.73692655,2252.4,2252.3,0.3636861]
[1750658232436,9.73692505,2252.4,2252.3,0.3636861]
[1750658232644,9.73692423,2252.4,2252.3,0.3636861]
[1750658233011,9.73692191,2252.4,2252.3,0.3636861]
[1750658233212,9.73692149,2252.4,2252.3,0.3636861]
[1750658233407,9.65922149,2252.4,2252.3,0.3636861]
[1750658234547,9.65920956,2252.4,2252.3,0.3636861]
[1750658234855,9.65923072,2252.4,2252.3,0.3636861]
[1750658235023,9.72003072,2252.4,2252.3,0.3636861]
[1750658236160,9.72003487,2252.4,2252.3,0.3636861]
[1750658236614,9.72000023,2252.4,2252.3,0.3636861]
[1750658236943,9.72000124,2252.4,2252.3,0.3636861]
[1750658237445,9.73720124,2252.4,2252.3,0.3636861]
[1750658237651,9.73721688,2252.4,2252.3,0.3636861]
[1750658238422,0.49321688,2252.4,2252.3,0.3636861]
[1750658238625,27.54501468,2252.4,2252.3,0.3636861]
[1750658239016,27.54504145,2252.4,2252.3,0.3636861]
[1750658239848,27.99103841,2252.4,2252.3,0.3636861]
[1750658240470,27.99105626,2252.4,2252.3,0.3636861]
[1750658241121,17.99105626,2252.4,2252.3,0.3636861]
[1750658241470,17.99105626,2252.4,2252.3,0.24408544]
[1750658241621,17.99106527,2252.4,2252.3,0.24408544]
[1750658242245,17.99073195,2252.4,2252.3,0.24408544]
[1750658242768,9.72997173,2252.4,2252.3,0.24408544]
[1750658243474,9.73009343,2252.4,2252.3,0.24408544]
[1750658243635,0.41509343,2252.4,2252.3,0.24408544]
[1750658243830,9.65109343,2252.4,2252.3,0.24408544]
[1750658244230,9.236,2252.4,2252.3,0.24408544]
[1750658244463,9.65104892,2252.4,2252.3,0.24408544]
[1750658244958,9.65104703,2252.4,2252.3,0.24408544]
[1750658245160,9.65105384,2252.4,2252.3,0.24408544]
[1750658245343,9.2968,2252.4,2252.3,0.24408544]
[1750658245545,9.65138258,2252.4,2252.3,0.24408544]
[1750658245744,19.71227491,2252.4,2252.3,0.24408544]
[1750658246136,19.2978,2252.4,2252.3,0.24408544]
[1750658246336,19.71327161,2252.4,2252.3,0.24408544]
[1750658246761,19.7132769,2252.4,2252.3,0.24408544]
[1750658247785,19.7132773,2252.4,2252.3,0.24408544]
[1750658248580,19.65255167,2252.4,2252.3,0.24408544]
[1750658249265,19.65299511,2252.4,2252.3,0.24408544]
[1750658250079,19.7137994,2252.4,2252.3,0.24408544]
[1750658250245,10.4767994,2252.4,2252.3,0.24408544]
[1750658250446,19.71380607,2252.4,2252.3,0.24408544]
[1750658250945,19.71380003,2252.4,2252.3,0.24408544]
[1750658251136,19.71379943,2252.4,2252.3,0.24408544]
[1750658251369,19.2978,2252.4,2252.3,0.24408544]
[1750658251674,19.71385635,2252.4,2252.3,0.24408544]